fUSD/lending_fUSD_20240826
["ID","MTS","AMOUNT","RATE_DAILY","PERIOD"]
[336057951,1724683835726,-322.73512027,0.00010985,2]
[336057952,1724683835735,-500.0,0.00010985,2]
[336057953,1724683835745,-500.0,0.00010985,2]
[336057954,1724683835754,-500.0,0.00010985,2]
[336057955,1724683835763,-542.54,0.00010985,2]
[336057956,1724683835773,-542.54,0.00010985,2]
[336057957,1724683835782,-500.0,0.00010985,2]
[336057958,1724683835791,-500.0,0.00010985,2]
[336057959,1724683835802,-576.84220295,0.00010985,2]
[336057960,1724683835811,-500.0,0.00010985,2]
[336057961,1724683835821,-500.0,0.00010985,2]
[336057962,1724683835830,-500.0,0.00010985,2]
[336057963,1724683835840,-500.0,0.00010985,2]
[336057964,1724683835849,-500.0,0.00010985,2]
[336057965,1724683835860,-500.0,0.00010985,2]
[336057966,1724683835869,-609.63,0.00010985,2]
[336057967,1724683835879,-609.63,0.00010985,2]
[336057968,1724683835888,-500.0,0.00010985,2]
[336057969,1724683835897,-500.0,0.00010985,2]
[336057970,1724683835907,-500.0,0.00010985,2]
[336057971,1724683835916,-500.0,0.00010985,2]
[336057972,1724683835925,-1063.83,0.00010985,2]
[336057973,1724683835935,-1063.83,0.00010985,2]
[336057974,1724683835944,-500.0,0.00010985,2]
[336057975,1724683835953,-500.0,0.00010985,2]
[336057976,1724683835962,-500.0,0.00010985,2]
[336057977,1724683835972,-500.0,0.00010985,2]
[336057978,1724683835981,-500.0,0.00010985,2]
[336057979,1724683835990,-500.0,0.00010985,2]
[336057980,1724683835999,-1183.74,0.00010985,2]
[336057981,1724683836008,-1183.74,0.00010985,2]
[336057982,1724683836018,-208.7447505,0.00010985,2]
[336057983,1724683836027,-500.0,0.00010985,2]
[336057984,1724683836036,-500.0,0.00010985,2]
[336057985,1724683836045,-500.0,0.00010985,2]
[336057986,1724683836055,-500.0,0.00010985,2]
[336057987,1724683836064,-500.0,0.00010985,2]
[336057988,1724683836074,-500.0,0.00010985,2]
[336057989,1724683836084,-500.0,0.00010985,2]
[336057990,1724683836094,-500.0,0.00010985,2]
[336057991,1724683836103,-500.0,0.00010985,2]
[336057992,1724683836113,-500.0,0.00010985,2]
[336057993,1724683836122,-500.0,0.00010985,2]
[336057994,1724683836133,-576.76958944,0.00010985,2]
[336057995,1724683836146,-500.0,0.00010985,2]
[336057996,1724683836156,-500.0,0.00010985,2]
[336057997,1724683836167,-500.0,0.00010985,2]
[336057998,1724683836177,-500.0,0.00010985,2]
[336057999,1724683836186,-500.0,0.00010985,2]
[336058000,1724683836196,-500.0,0.00010985,2]
[336058001,1724683836205,-500.0,0.00010985,2]
[336058002,1724683836216,-500.0,0.00010985,2]
[336058003,1724683836226,-500.0,0.00010985,2]
[336058004,1724683836236,-500.0,0.00010985,2]
[336058005,1724683836245,-500.0,0.00010985,2]
[336058006,1724683836255,-530.33,0.00010985,2]
[336058007,1724683836264,-530.33,0.00010985,2]
[336058008,1724683836273,-500.0,0.00010985,2]
[336058009,1724683836282,-500.0,0.00010985,2]
[336058010,1724683836292,-500.0,0.00010985,2]
[336058011,1724683836301,-500.0,0.00010985,2]
[336058012,1724683836310,-500.0,0.00010985,2]
[336058013,1724683836319,-500.0,0.00010985,2]
[336058014,1724683836331,-500.0,0.00010985,2]
[336058015,1724683836340,-500.0,0.00010985,2]
[336058016,1724683836349,-500.0,0.00010985,2]
[336058017,1724683836358,-848.46823211,0.00010985,2]
[336058018,1724683836966,-319.04176789,0.00010985,2]
[336058019,1724683836976,-1167.51,0.00010985,2]
[336058020,1724683836985,-1050.83308211,0.00010985,2]
[336058021,1724683836997,-2155.33691789,0.00010985,2]
[336058022,1724683837006,-597.12,0.00010985,2]
[336058023,1724683837016,-4125.66,0.00010985,2]
[336058024,1724683837025,-597.12,0.00010985,2]
[336058025,1724683837034,-1077.3,0.00010985,2]
[336058026,1724683837044,-1077.3,0.00010985,2]
[336058027,1724683837053,-1277.05,0.00010985,2]
[336058028,1724683837062,-1212.4,0.00010985,2]
[336058029,1724683837071,-500.0,0.00010985,2]
[336058030,1724683837091,-84.51308211,0.00010985,2]
[336058043,1724683838118,-158.44222575,0.00010982,2]
[336058044,1724683838131,-415.48691789,0.00010985,2]
[336058045,1724683838145,-1442.78,0.00010985,2]
[336058046,1724683838154,-1442.78,0.00010985,2]
[336058047,1724683838163,-828.01,0.00010985,2]
[336058048,1724683838173,-321.19769965,0.00010985,2]
[336058049,1724683838186,-178.80230035,0.00010985,2]
[336058050,1724683838195,-1169.36,0.00010985,2]
[336058051,1724683838204,-1169.36,0.00010985,2]
[336058052,1724683838213,-222.78940365,0.00010985,2]
[336058053,1724683838227,-1571.00059635,0.00010985,2]
[336058054,1724683838236,-1793.79,0.00010985,2]
[336058055,1724683838246,-500.0,0.00010985,2]
[336058056,1724683838255,-500.0,0.00010985,2]
[336058057,1724683838264,-500.0,0.00010985,2]
[336058058,1724683838273,-500.0,0.00010985,2]
[336058059,1724683838283,-500.0,0.00010985,2]
[336058060,1724683838292,-500.0,0.00010985,2]
[336058061,1724683838302,-500.0,0.00010985,2]
[336058062,1724683838311,-647.94,0.00010985,2]
[336058063,1724683838322,-647.94,0.00010985,2]
[336058064,1724683838335,-500.0,0.00010985,2]
[336058065,1724683838345,-500.0,0.00010985,2]
[336058066,1724683838354,-500.0,0.00010985,2]
[336058068,1724683838363,-164.72922764,0.00010985,2]
[336058070,1724683838372,-1469.71,0.00010985,2]
[336058071,1724683838382,-500.0,0.00010985,2]
[336058072,1724683838391,-500.0,0.00010985,2]
[336058074,1724683838400,-307.72706417,0.00010985,2]
[336058076,1724683838409,-500.0,0.00010985,2]
[336058077,1724683838418,-2069.49,0.00010985,2]
[336058079,1724683838427,-883.17311184,0.00010985,2]
[336058081,1724683838439,-1186.31688816,0.00010985,2]
[336058083,1724683838448,-358.281026,0.00010985,2]
[336058085,1724683838460,-388.548974,0.00010985,2]
[336058087,1724683838470,-746.83,0.00010985,2]
[336058089,1724683838479,-1064.97,0.00010985,2]
[336058091,1724683838488,-1064.97,0.00010985,2]
[336058093,1724683838497,-500.0,0.00010985,2]
[336058095,1724683838507,-4954.41,0.00010985,2]
[336058097,1724683838516,-500.0,0.00010985,2]
[336058099,1724683838526,-4954.41,0.00010985,2]
[336058101,1724683838535,-548.03,0.00010985,2]
[336058103,1724683838545,-500.0,0.00010985,2]
[336058105,1724683838555,-794.63,0.00010985,2]
[336058107,1724683838564,-794.63,0.00010985,2]
[336058109,1724683838574,-500.0,0.00010985,2]
[336058111,1724683838585,-500.0,0.00010985,2]
[336058113,1724683838595,-500.0,0.00010985,2]
[336058115,1724683838604,-500.0,0.00010985,2]
[336058117,1724683838613,-500.0,0.00010985,2]
[336058119,1724683838623,-1619.9,0.00010985,2]
[336058121,1724683838633,-1619.9,0.00010985,2]
[336058123,1724683838643,-873.04,0.00010985,2]
[336058125,1724683838652,-349.76999603,0.00010985,2]
[336058127,1724683838664,-523.27000397,0.00010985,2]
[336058129,1724683838674,-253.89020037,0.00010985,2]
[336058131,1724683838685,-246.10979963,0.00010985,2]
[336058133,1724683838695,-500.0,0.00010985,2]
[336058135,1724683838704,-324.71869116,0.00010985,2]
[336058138,1724683838715,-175.28130884,0.00010985,2]
[336058140,1724683838724,-500.0,0.00010985,2]
[336058142,1724683838733,-339.33599166,0.00010985,2]
[336058148,1724683838786,-282.68400834,0.00010985,2]
[336058150,1724683838797,-500.0,0.00010985,2]
[336058152,1724683838807,-500.0,0.00010985,2]
[336058154,1724683838816,-622.02,0.00010985,2]
[336058156,1724683838825,-500.0,0.00010985,2]
[336058158,1724683838836,-500.0,0.00010985,2]
[336058160,1724683838845,-500.0,0.00010985,2]
[336058162,1724683838855,-500.0,0.00010985,2]
[336058164,1724683838864,-217.06582492,0.00010985,2]
[336058168,1724683838928,-282.93417508,0.00010985,2]
[336058169,1724683838938,-2651.48287846,0.00010985,2]
[336058170,1724683838949,-1024.07712154,0.00010985,2]
[336058171,1724683838959,-442.35718987,0.00010985,2]
[336058172,1724683838970,-1080.68345125,0.00010985,2]
[336058275,1724683840030,-300.0,0.00010796,2]
[336058278,1724683840043,-701.66503495,0.00010796,2]
[336058280,1724683840055,-498.33496505,0.00010796,2]
[336058282,1724683840064,-256.68622137,0.00010855,2]
[336058284,1724683840074,-152.80631539,0.00010886,2]
[336058286,1724683840089,-150.0,0.00010969,2]
[336058288,1724683840099,-151.66974505,0.00010985,2]
[336058301,1724683840216,-150.0,0.00010784,2]
[336058303,1724683840228,-155.0885737,0.00010954,2]
[336058305,1724683840238,-150.0,0.0001096,2]
[336058307,1724683840248,-2000.84961383,0.00010985,2]
[336058309,1724683840258,-500.0,0.00010985,2]
[336058311,1724683840267,-201.86181247,0.00010985,2]
[336058327,1724683840419,-500.0,0.00010983,2]
[336058329,1724683840430,-298.13818753,0.00010985,2]
[336058331,1724683840440,-700.1,0.00010985,2]
[336058333,1724683840449,-517.71037005,0.00010985,2]
[336058335,1724683840461,-1765.19999999,0.00010985,2]
[336058339,1724683840486,-3170.394288,0.00010985,2]
[336058616,1724683843099,-500.0,0.00010983,2]
[336058618,1724683843109,-395.88804481,0.00010984,2]
[336058620,1724683843120,-104.11195519,0.00010984,2]
[336058622,1724683843129,-500.0,0.00010984,2]
[336058624,1724683843140,-500.0,0.00010984,2]
[336058639,1724683843356,-500.0,0.00010984,2]
[336058640,1724683843366,-50.63388941,0.00010984,2]
[336058641,1724683843382,-925.58611059,0.00010984,2]
[336058642,1724683843391,-198.85534196,0.00010985,2]
[336058643,1724683843401,-385.44975779,0.00010985,2]
[336058644,1724683843412,-114.55024221,0.00010985,2]
[336058645,1724683843422,-471.07503779,0.00010985,2]
[336058646,1724683843438,-2498.82070866,0.00010985,2]
[336058647,1724683843449,-731.09425355,0.00010985,2]
[336058649,1724683843458,-3700.99,0.00010985,2]
[336058650,1724683843467,-3271.76,0.00010985,2]
[336058652,1724683843476,-3271.76,0.00010985,2]
[336058654,1724683843486,-784.24,0.00010985,2]
[336058656,1724683843496,-784.24,0.00010985,2]
[336058658,1724683843506,-1292.52,0.00010985,2]
[336058660,1724683843518,-1292.52,0.00010985,2]
[336058662,1724683843527,-500.0,0.00010985,2]
[336058664,1724683843536,-500.0,0.00010985,2]
[336058666,1724683843545,-530.18669419,0.00010985,2]
[336058668,1724683843555,-631.26,0.00010985,2]
[336058671,1724683843563,-631.26,0.00010985,2]
[336058673,1724683843573,-526.78,0.00010985,2]
[336058675,1724683843583,-500.0,0.00010985,2]
[336058677,1724683843593,-500.0,0.00010985,2]
[336058679,1724683843602,-500.0,0.00010985,2]
[336058681,1724683843611,-2911.3,0.00010985,2]
[336058683,1724683843620,-2911.3,0.00010985,2]
[336058685,1724683843629,-500.0,0.00010985,2]
[336058687,1724683843638,-4007.96,0.00010985,2]
[336058689,1724683843647,-4007.96,0.00010985,2]
[336058691,1724683843656,-500.0,0.00010985,2]
[336058693,1724683843665,-1307.68,0.00010985,2]
[336058695,1724683843674,-1307.68,0.00010985,2]
[336058697,1724683843684,-899.81,0.00010985,2]
[336058699,1724683843693,-500.0,0.00010985,2]
[336058701,1724683843702,-1811.02,0.00010985,2]
[336058703,1724683843711,-1811.02,0.00010985,2]
[336058705,1724683843720,-1650.34,0.00010985,2]
[336058707,1724683843729,-500.0,0.00010985,2]
[336058709,1724683843738,-1388.6,0.00010985,2]
[336058710,1724683843748,-500.0,0.00010985,2]
[336058713,1724683843758,-1388.6,0.00010985,2]
[336058715,1724683843767,-500.0,0.00010985,2]
[336058717,1724683843776,-500.0,0.00010985,2]
[336058719,1724683843785,-500.0,0.00010985,2]
[336058721,1724683843794,-500.0,0.00010985,2]
[336058723,1724683843803,-500.0,0.00010985,2]
[336058725,1724683843813,-500.0,0.00010985,2]
[336058727,1724683843822,-500.0,0.00010985,2]
[336058729,1724683843832,-2960.68,0.00010985,2]
[336058731,1724683843850,-2960.68,0.00010985,2]
[336058733,1724683843859,-5262.18,0.00010985,2]
[336058734,1724683843868,-1621.74,0.00010985,2]
[336058736,1724683843877,-1621.74,0.00010985,2]
[336058739,1724683843887,-500.0,0.00010985,2]
[336058741,1724683843896,-3457.94,0.00010985,2]
[336058743,1724683843905,-1160.43,0.00010985,2]
[336058745,1724683843914,-3457.94,0.00010985,2]
[336058747,1724683843924,-500.0,0.00010985,2]
[336058749,1724683843934,-500.0,0.00010985,2]
[336058751,1724683843944,-955.62,0.00010985,2]
[336058753,1724683843953,-500.0,0.00010985,2]
[336058755,1724683843963,-955.62,0.00010985,2]
[336058757,1724683843972,-67.95705442,0.00010985,2]
[336058762,1724683844013,-353.287,0.00010985,2]
[336058962,1724683845928,-704.85845544,0.00010983,2]
[336058964,1724683845940,-688.08154456,0.00010983,2]
[336058966,1724683845949,-143.57745544,0.00010984,2]
[336058968,1724683845961,-1249.36254456,0.00010984,2]
[336058969,1724683845970,-1392.94,0.00010984,2]
[336058970,1724683845980,-458.98373882,0.00010984,2]
[336058971,1724683845998,-528.54626118,0.00010984,2]
[336058972,1724683846007,-2889.75594558,0.00010985,2]
[336058973,1724683846017,-3311.0,0.00010985,2]
[336058974,1724683846026,-719.85,0.00010985,2]
[336058975,1724683846036,-602.2,0.00010985,2]
[336058976,1724683846045,-2952.12,0.00010985,2]
[336058977,1724683846054,-2952.12,0.00010985,2]
[336058978,1724683846063,-566.11,0.00010985,2]
[336058979,1724683846072,-566.11,0.00010985,2]
[336058980,1724683846085,-500.0,0.00010985,2]
[336058981,1724683846096,-2034.08,0.00010985,2]
[336058982,1724683846105,-2034.08,0.00010985,2]
[336058983,1724683846114,-968.74,0.00010985,2]
[336058984,1724683846124,-968.74,0.00010985,2]
[336058985,1724683846133,-500.0,0.00010985,2]
[336058986,1724683846142,-2245.15,0.00010985,2]
[336058987,1724683846156,-2245.15,0.00010985,2]
[336058988,1724683846165,-500.0,0.00010985,2]
[336058989,1724683846174,-500.0,0.00010985,2]
[336058990,1724683846183,-736.85,0.00010985,2]
[336058991,1724683846193,-500.0,0.00010985,2]
[336058992,1724683846202,-736.85,0.00010985,2]
[336058993,1724683846211,-500.0,0.00010985,2]
[336058994,1724683846221,-500.0,0.00010985,2]
[336058995,1724683846232,-2927.03,0.00010985,2]
[336058996,1724683846241,-2927.03,0.00010985,2]
[336058997,1724683846250,-500.0,0.00010985,2]
[336058998,1724683846259,-500.0,0.00010985,2]
[336059000,1724683846268,-1827.64,0.00010985,2]
[336059002,1724683846277,-500.0,0.00010985,2]
[336059003,1724683846286,-2735.5,0.00010985,2]
[336059005,1724683846295,-500.0,0.00010985,2]
[336059007,1724683846304,-2735.5,0.00010985,2]
[336059009,1724683846314,-380.24561558,0.00010985,2]
[336059010,1724683846323,-552.81340703,0.00010985,2]
[336059011,1724683846333,-251.36090946,0.00010985,2]
[336059012,1724683846346,-583.58,0.00010985,2]
[336059014,1724683846355,-583.58,0.00010985,2]
[336059016,1724683846365,-500.0,0.00010985,2]
[336059019,1724683846375,-500.0,0.00010985,2]
[336059020,1724683846384,-1551.61,0.00010985,2]
[336059022,1724683846393,-2626.61,0.00010985,2]
[336059024,1724683846403,-500.0,0.00010985,2]
[336059026,1724683846413,-500.0,0.00010985,2]
[336059029,1724683846423,-500.0,0.00010985,2]
[336059031,1724683846432,-500.0,0.00010985,2]
[336059033,1724683846442,-500.0,0.00010985,2]
[336059034,1724683846451,-1179.22,0.00010985,2]
[336059036,1724683846460,-500.0,0.00010985,2]
[336059039,1724683846470,-500.0,0.00010985,2]
[336059040,1724683846479,-500.0,0.00010985,2]
[336059042,1724683846488,-3346.28,0.00010985,2]
[336059044,1724683846497,-500.0,0.00010985,2]
[336059046,1724683846506,-855.44,0.00010985,2]
[336059048,1724683846515,-594.73121765,0.00010985,2]
[336059050,1724683846525,-855.44,0.00010985,2]
[336059052,1724683846534,-842.19,0.00010985,2]
[336059054,1724683846543,-842.19,0.00010985,2]
[336059056,1724683846552,-896.28,0.00010985,2]
[336059058,1724683846562,-896.28,0.00010985,2]
[336059060,1724683846571,-1906.28,0.00010985,2]
[336059062,1724683846580,-500.0,0.00010985,2]
[336059064,1724683846592,-1326.14,0.00010985,2]
[336059066,1724683846601,-516.7723389,0.00010985,2]
[336059068,1724683846611,-585.79,0.00010985,2]
[336059070,1724683846620,-585.79,0.00010985,2]
[336059072,1724683846629,-1102.15,0.00010985,2]
[336059074,1724683846639,-630.37,0.00010985,2]
[336059076,1724683846648,-1102.15,0.00010985,2]
[336059078,1724683846657,-630.37,0.00010985,2]
[336059080,1724683846666,-500.0,0.00010985,2]
[336059082,1724683846675,-341.34,0.00010985,2]
[336059084,1724683846684,-500.0,0.00010985,2]
[336059086,1724683846693,-500.0,0.00010985,2]
[336059088,1724683846703,-3981.73,0.00010985,2]
[336059090,1724683846712,-3981.73,0.00010985,2]
[336059092,1724683846721,-500.0,0.00010985,2]
[336059094,1724683846730,-1046.82,0.00010985,2]
[336059096,1724683846740,-1046.82,0.00010985,2]
[336059098,1724683846750,-1606.94,0.00010985,2]
[336059100,1724683846761,-787.75,0.00010985,2]
[336059103,1724683846770,-500.0,0.00010985,2]
[336059105,1724683846780,-683.21,0.00010985,2]
[336059107,1724683846789,-683.21,0.00010985,2]
[336059109,1724683846798,-500.0,0.00010985,2]
[336059111,1724683846808,-2648.22,0.00010985,2]
[336059113,1724683846817,-2648.22,0.00010985,2]
[336059115,1724683846827,-500.0,0.00010985,2]
[336059117,1724683846838,-1591.45,0.00010985,2]
[336059118,1724683846847,-500.0,0.00010985,2]
[336059120,1724683846855,-500.0,0.00010985,2]
[336059122,1724683846865,-1684.0,0.00010985,2]
[336059124,1724683846875,-500.0,0.00010985,2]
[336059126,1724683846884,-1684.0,0.00010985,2]
[336059128,1724683846893,-1733.43,0.00010985,2]
[336059130,1724683846902,-1733.43,0.00010985,2]
[336059132,1724683846911,-1323.33,0.00010985,2]
[336059134,1724683846921,-2569.6,0.00010985,2]
[336059136,1724683846931,-500.0,0.00010985,2]
[336059138,1724683846940,-500.0,0.00010985,2]
[336059140,1724683846949,-2868.96,0.00010985,2]
[336059142,1724683846958,-2868.96,0.00010985,2]
[336059144,1724683846967,-500.0,0.00010985,2]
[336059146,1724683846976,-500.0,0.00010985,2]
[336059148,1724683846985,-944.01,0.00010985,2]
[336059150,1724683846994,-944.01,0.00010985,2]
[336059152,1724683847003,-1423.76,0.00010985,2]
[336059154,1724683847012,-674.53,0.00010985,2]
[336059156,1724683847021,-674.53,0.00010985,2]
[336059158,1724683847031,-500.0,0.00010985,2]
[336059160,1724683847041,-1730.1,0.00010985,2]
[336059162,1724683847051,-500.0,0.00010985,2]
[336059164,1724683847061,-1730.1,0.00010985,2]
[336059166,1724683847071,-539.66,0.00010985,2]
[336059168,1724683847080,-3917.42,0.00010985,2]
[336059170,1724683847092,-3773.61487554,0.00010985,2]
[336059206,1724683847438,-143.80512446,0.00010985,2]
[336059209,1724683847449,-120.26328309,0.00010985,2]
[336059211,1724683847466,-353.47,0.00010985,2]
[336059215,1724683847487,-26.26671691,0.00010985,2]
[336059217,1724683847496,-500.0,0.00010985,2]
[336059219,1724683847506,-500.0,0.00010985,2]
[336059220,1724683847515,-500.0,0.00010985,2]
[336059222,1724683847525,-934.82,0.00010985,2]
[336059224,1724683847535,-934.82,0.00010985,2]
[336059226,1724683847544,-1474.58,0.00010985,2]
[336059228,1724683847554,-500.0,0.00010985,2]
[336059230,1724683847563,-500.0,0.00010985,2]
[336059232,1724683847572,-461.44124558,0.00010985,2]
[336059235,1724683847585,-494.84346495,0.00010985,2]
[336059237,1724683847596,-1215.30012531,0.00010985,2]
[336059239,1724683847607,-842.48516416,0.00010985,2]
[336059241,1724683847616,-97.48983584,0.00010985,2]
[336059248,1724683847677,-1581.68934,0.00010985,2]
[336059250,1724683847688,-918.65105325,0.00010985,2]
[336060744,1724683929314,174.81,9.891e-05,2]
[336060745,1724683955601,60688.40887364,0.00017,90]
[336060746,1724683962984,265.11723843,9.999e-05,2]
[336060777,1724684122128,197.65,9.891e-05,2]
[336060778,1724684162138,298.82691546,9.999e-05,2]
[336060779,1724684171445,454.52,8.219e-05,2]
[336060780,1724684187692,3829.6703,9.983e-05,2]
[336060781,1724684215887,380.16,9.895e-05,2]
[336060782,1724684338022,328.0,9.889e-05,2]
[336060785,1724684457301,269.62,9.884e-05,2]
[336060786,1724684461614,6795.04616766,0.00017,90]
[336060787,1724684616912,202.22,9.883e-05,2]
[336060788,1724684617379,339.68,9.883e-05,2]
[336060789,1724684705230,2049.02,9.872e-05,2]
[336060791,1724684762824,451.67,8.219e-05,2]
[336060796,1724684810219,156.28604354,9.962e-05,2]
[336060797,1724684811797,23880.0,9.893e-05,2]
[336060798,1724684817876,155.58333286,0.0001,2]
[336060799,1724684822274,380.35876131,9.999e-05,2]
[336060803,1724684835882,1736.23822515,9.962e-05,2]
[336060838,1724684845843,400.0,0.0001,3]
[336060839,1724684846686,737.6,9.893e-05,2]
[336060847,1724684962803,155.86899415,9.999e-05,2]
[336060848,1724684964606,254.41,9.931e-05,2]
[336060874,1724685032265,-393.8276946,0.00010026,2]
[336060875,1724685032276,-157.79885906,0.00010026,2]
[336060876,1724685032286,-300.0,0.00010096,2]
[336060877,1724685032295,-402.6611149,0.00010097,2]
[336060878,1724685032306,-173.11779146,0.00010097,2]
[336060879,1724685032326,-2505.60920584,0.00010097,2]
[336060880,1724685032336,-283.60859595,0.00010097,2]
[336060881,1724685032346,-155.0,0.00010097,2]
[336060882,1724685032356,-309.53385729,0.00010097,2]
[336060883,1724685032366,-800.0,0.000101,3]
[336060884,1724685032375,-1300.0,0.000102,3]
[336060885,1724685032385,-1700.0,0.000103,3]
[336060886,1724685032395,-2200.0,0.000104,3]
[336060887,1724685032405,-451.67,0.00010471,2]
[336060888,1724685032414,-3045.7727014,0.00010471,2]
[336060889,1724685032424,-328.33768382,0.00010471,2]
[336060890,1724685032434,-400.0,0.000105,3]
[336060891,1724685032443,-183.91967457,0.00010505,2]
[336060892,1724685032453,-6179.34,0.000106,2]
[336060893,1724685032462,-277.55,0.000106,2]
[336060894,1724685032473,-400.0,0.000106,3]
[336060895,1724685032482,-461.18,0.0001063,2]
[336060896,1724685032492,-939.86,0.0001063,2]
[336060897,1724685032502,-299.99,0.0001063,2]
[336060898,1724685032515,-150.0,0.00010666,2]
[336060900,1724685032531,-499.99,0.00010667,2]
[336060902,1724685032541,-600.0,0.00010668,2]
[336060904,1724685032551,-600.0,0.00010668,2]
[336060906,1724685032564,-600.0,0.0001067,2]
[336060908,1724685032575,-212.20182364,0.00010699,2]
[336060910,1724685032586,-155.30132104,0.00010699,2]
[336060912,1724685032597,-2538.6134861,0.00010699,2]
[336060914,1724685032607,-400.0,0.000107,3]
[336060916,1724685032617,-2388.5951406,0.00010713,2]
[336060919,1724685032628,-520.36219453,0.00010799,2]
[336060920,1724685032637,-400.0,0.000108,3]
[336060922,1724685032647,-401.77622283,0.000108,2]
[336060924,1724685032657,-3235.2613,0.00010849,2]
[336060926,1724685032667,-156.68463585,0.00010852,2]
[336060928,1724685032676,-1617.93226539,0.00010861,2]
[336060930,1724685032686,-531.49545144,0.00010862,2]
[336060932,1724685032696,-155.15643283,0.00010862,2]
[336060934,1724685032705,-2285.67614838,0.00010873,2]
[336060936,1724685032721,-738.16,0.00010877,14]
[336060938,1724685032740,-2096.20566282,0.0001088,2]
[336060940,1724685032754,-3000.0,0.0001088,2]
[336060942,1724685032764,-332.856,0.00010883,2]
[336060944,1724685032774,-34333.5506,0.00010883,2]
[336060946,1724685032784,-7864.71,0.00010883,2]
[336060948,1724685032794,-262.9013,0.00010883,2]
[336060950,1724685032804,-165.4481704,0.00010884,2]
[336060952,1724685032819,-163.67346565,0.00010884,2]
[336060954,1724685032829,-3329.8603,0.00010884,2]
[336060956,1724685032840,-3888.8824,0.00010884,2]
[336060958,1724685032850,-198.569,0.00010884,2]
[336060960,1724685032861,-1000.0,0.00010885,2]
[336060961,1724685032871,-2214.9811,0.00010885,2]
[336060963,1724685032881,-248.23459921,0.00010887,2]
[336060965,1724685032892,-419.61588578,0.00010888,2]
[336060967,1724685032902,-330.28393431,0.00010888,2]
[336060969,1724685032912,-11747.27554621,0.0001089,2]
[336060972,1724685032922,-206.09877365,0.0001089,2]
[336060974,1724685032932,-258.93570141,0.0001089,2]
[336060976,1724685032942,-155.08633138,0.0001089,2]
[336060978,1724685032951,-155.0,0.0001089,2]
[336060980,1724685032961,-323.10566793,0.00010892,2]
[336060982,1724685032971,-165.44817039,0.00010892,2]
[336060984,1724685032981,-248.23459919,0.00010894,2]
[336060986,1724685032990,-323.10566793,0.00010896,2]
[336060988,1724685033000,-5850.0,0.00010896,2]
[336060990,1724685033010,-13454.0,0.00010896,2]
[336060992,1724685033019,-390.632,0.00010896,2]
[336060994,1724685033029,-1077.0,0.00010896,2]
[336060996,1724685033038,-152.59349176,0.00010899,2]
[336060998,1724685033048,-152.59349174,0.00010899,2]
[336061000,1724685033057,-152.59349174,0.00010899,2]
[336061002,1724685033069,-152.59349174,0.00010899,2]
[336061004,1724685033079,-152.59349174,0.00010899,2]
[336061006,1724685033089,-155.0,0.00010899,2]
[336061008,1724685033099,-165.44817039,0.000109,2]
[336061011,1724685033108,-781006.75867458,0.000109,3]
[336061014,1724685033127,-3094.63215291,0.000109,3]
[336061016,1724685033138,-149154.69680387,0.000109,3]
[336061020,1724685033164,-1700.0,0.000109,3]
[336061022,1724685033176,-2400.0,0.000109,3]
[336061043,1724685038248,-155.0,0.00010799,2]
[336061044,1724685038258,-305.07545363,0.000109,3]
[336061046,1724685038296,-11423.42991788,0.000109,3]
[336061047,1724685038307,-29334.27586865,0.000109,3]